bitfinex/quotes_BTCUSD_20250808
["timestamp","ask_amount","ask_price","bid_price","bid_amount"]
[1754631387226,0.02874393,116610.0,116600.0,1.16423774]
[1754631392164,0.02874393,116610.0,116600.0,0.84719243]
[1754631392615,0.02874393,116610.0,116600.0,1.16423774]
[1754631394315,0.2002558,116610.0,116600.0,1.03343774]
[1754631394445,0.2002558,116610.0,116600.0,1.16423774]
[1754631394645,0.02874393,116610.0,116600.0,1.16423774]
[1754631394888,0.2002558,116610.0,116600.0,1.03343774]
[1754631395064,0.2002558,116610.0,116600.0,1.16423774]
[1754631396028,0.2002558,116610.0,116600.0,1.03343774]
[1754631396288,0.2002558,116610.0,116600.0,1.16423774]
[1754631396662,0.02874393,116610.0,116600.0,1.16423774]
[1754631397182,0.2002558,116610.0,116600.0,1.16423774]
[1754631397521,0.02874393,116610.0,116600.0,1.16423774]
[1754631397697,0.2002558,116610.0,116600.0,1.16423774]
[1754631398828,0.02874393,116610.0,116600.0,1.16423774]
[1754631399057,0.2002558,116610.0,116600.0,1.16423774]
[1754631399640,0.02874393,116610.0,116600.0,1.16423774]
[1754631400350,0.2002558,116610.0,116600.0,1.16423774]
[1754631400570,0.02874393,116610.0,116600.0,1.16423774]
[1754631401312,0.2002558,116610.0,116600.0,1.16423774]
[1754631401500,0.02874393,116610.0,116600.0,1.16423774]
[1754631402538,0.2002558,116610.0,116600.0,1.16423774]
[1754631404676,0.2002558,116610.0,116600.0,1.03343774]
[1754631404843,0.2002558,116610.0,116600.0,1.16423774]
[1754631405046,0.2002558,116610.0,116600.0,1.03343774]
[1754631405552,0.2002558,116610.0,116600.0,1.16423774]
[1754631407706,0.3310558,116610.0,116600.0,1.16423774]
[1754631408666,0.3310558,116610.0,116600.0,0.90233774]
[1754631411426,0.3310558,116610.0,116600.0,0.77153774]
[1754631414326,0.15954393,116610.0,116600.0,0.77153774]
[1754631415356,0.15954393,116610.0,116600.0,0.90233774]
[1754631417277,0.3310558,116610.0,116600.0,0.58529243]
[1754631417472,0.3310558,116610.0,116600.0,0.90233774]
[1754631417687,0.15954393,116610.0,116600.0,0.90233774]
[1754631417892,0.3310558,116610.0,116600.0,0.90233774]
[1754631419455,0.3310558,116610.0,116600.0,0.77153774]
[1754631420294,0.3310558,116610.0,116600.0,0.90233774]
[1754631420519,0.3310558,116610.0,116600.0,0.77153774]
[1754631420642,0.3310558,116610.0,116600.0,0.90233774]
[1754631420643,0.51699295,116610.0,116600.0,0.90233774]
[1754631421402,0.68850482,116610.0,116600.0,0.58529243]
[1754631421755,0.68850482,116610.0,116600.0,0.90233774]
[1754631422171,0.68850482,116610.0,116600.0,0.77153774]
[1754631424732,0.51699295,116610.0,116600.0,0.77153774]
[1754631424948,0.51699295,116610.0,116600.0,0.90229774]
[1754631425705,0.68850482,116610.0,116600.0,0.90229774]
[1754631427494,0.51699295,116610.0,116600.0,0.90229774]
[1754631428095,0.68850482,116610.0,116600.0,0.90229774]
[1754631428306,0.51699295,116610.0,116600.0,0.90229774]
[1754631432451,0.17699295,116610.0,116600.0,0.90229774]
[1754631443865,0.17699295,116610.0,116600.0,0.58525243]
[1754631444070,0.17699295,116610.0,116600.0,0.90229774]
[1754631445351,0.17699295,116610.0,116600.0,0.58525243]
[1754631445470,0.17699295,116610.0,116600.0,0.90229774]
[1754631446487,0.01792295,116610.0,116600.0,1.21934305]
[1754631446686,0.01792295,116610.0,116600.0,0.90229774]
[1754631448168,0.04063295,116610.0,116600.0,0.58525243]
[1754631448383,0.04063295,116610.0,116600.0,0.90229774]
[1754631450070,0.04063295,116610.0,116600.0,1.16419774]
[1754631450587,0.04581295,116610.0,116600.0,0.84715243]
[1754631450787,0.04581295,116610.0,116600.0,1.03343774]
[1754631451015,0.04581295,116610.0,116600.0,1.16419774]
[1754631451939,0.04581295,116610.0,116600.0,0.84715243]
[1754631452145,0.04581295,116610.0,116600.0,1.16419774]
[1754631452433,0.04581295,116610.0,116600.0,1.03343774]
[1754631452638,0.04581295,116610.0,116600.0,1.16419774]
[1754631452948,0.04581295,116610.0,116600.0,0.84715243]
[1754631453148,0.04581295,116610.0,116600.0,1.16419774]
[1754631455045,0.04581295,116610.0,116600.0,0.84715243]
[1754631456433,0.04581295,116610.0,116600.0,0.71639243]
[1754631458628,0.04581295,116610.0,116600.0,0.84711243]
[1754631459332,0.04581295,116610.0,116600.0,1.16415774]
[1754631461488,0.04581295,116610.0,116600.0,0.84711243]
[1754631461705,0.04581295,116610.0,116600.0,1.16415774]
[1754631463407,0.53437013,116610.0,116600.0,0.71639243]
[1754631463644,0.04581295,116610.0,116600.0,0.84711243]
[1754631464106,0.04581295,116610.0,116600.0,1.16415774]
[1754631465131,0.04581295,116610.0,116600.0,0.84711243]
[1754631465460,0.04581295,116610.0,116600.0,1.16415774]
[1754631465874,0.04581295,116610.0,116600.0,0.84711243]
[1754631466053,0.04581295,116610.0,116600.0,1.16415774]
[1754631467913,0.04581295,116610.0,116600.0,0.90225774]
[1754631468190,0.04581295,116610.0,116600.0,0.58521243]
[1754631468351,0.04581295,116610.0,116600.0,0.90225774]
[1754631468747,0.04581295,116610.0,116600.0,0.58521243]
[1754631468949,0.04581295,116610.0,116600.0,0.90225774]
[1754631469277,0.04581295,116610.0,116600.0,0.58521243]
[1754631469485,0.04581295,116610.0,116600.0,0.90225774]
[1754631473741,0.04581295,116610.0,116600.0,1.16415774]
[1754631479002,0.21732482,116610.0,116600.0,0.71639243]
[1754631479210,0.04581295,116610.0,116600.0,0.84707243]
[1754631480424,0.21732482,116610.0,116600.0,0.84707243]
[1754631480602,0.04581295,116610.0,116600.0,0.84707243]
[1754631481023,0.21732482,116610.0,116600.0,0.84707243]
[1754631481224,0.21732482,116610.0,116600.0,0.71639243]
[1754631481370,0.21732482,116610.0,116600.0,0.84707243]
[1754631481871,0.04581295,116610.0,116600.0,0.84707243]
[1754631482148,0.21732482,116610.0,116600.0,0.84707243]
[1754631485296,0.21732482,116610.0,116600.0,0.71639243]
[1754631486449,0.21732482,116610.0,116600.0,1.03343774]
[1754631486669,0.04581295,116610.0,116600.0,1.03343774]
[1754631487431,0.21732482,116610.0,116600.0,1.16411774]
[1754631488992,0.04581295,116610.0,116600.0,1.16411774]
[1754631489410,0.21732482,116610.0,116600.0,0.84707243]
[1754631490577,0.04581295,116610.0,116600.0,0.84707243]
[1754631492511,0.04581295,116610.0,116600.0,1.16411774]
[1754631495017,0.04581295,116610.0,116600.0,0.84707243]
[1754631495222,0.04581295,116610.0,116600.0,1.16411774]
[1754631498410,0.04581295,116610.0,116600.0,0.84707243]
[1754631501642,0.04581295,116610.0,116600.0,1.16411774]
[1754631502443,0.04581295,116610.0,116600.0,0.84707243]
[1754631502652,0.04581295,116610.0,116600.0,1.16411774]
[1754631505862,0.04581295,116610.0,116600.0,1.03343774]
[1754631506045,0.04370295,116610.0,116600.0,0.84699243]
[1754631506272,0.01792295,116610.0,116600.0,1.21918305]
[1754631507641,0.04190295,116610.0,116600.0,0.90213774]
[1754631510228,0.04190295,116610.0,116600.0,0.77153774]
[1754631510370,0.04190295,116610.0,116600.0,0.58509243]
[1754631510573,0.04505295,116610.0,116600.0,0.58509243]
[1754631512099,0.04715295,116610.0,116600.0,0.58509243]
[1754631512326,0.36419826,116610.0,116600.0,0.58509243]
[1754631514425,0.36419826,116610.0,116600.0,0.25449243]
[1754631514633,0.53571013,116610.0,116600.0,0.29823032]
[1754631516008,0.04715295,116610.0,116600.0,0.29823032]
[1754631516219,0.53571013,116610.0,116600.0,0.29823032]
[1754631516405,0.36419826,116610.0,116600.0,0.29823032]
[1754631516547,0.36419826,116610.0,116600.0,0.16763032]
[1754631518590,0.36209826,116610.0,116600.0,0.16763032]
[1754631518804,0.36419826,116610.0,116600.0,0.16763032]
[1754631519343,0.04715295,116610.0,116600.0,0.16763032]
[1754631520330,0.36419826,116610.0,116600.0,0.16763032]
[1754631520725,0.04715295,116610.0,116600.0,0.16763032]
[1754631522409,0.04715295,116610.0,116600.0,0.61527563]
[1754631522672,0.04715295,116610.0,116600.0,0.29823032]
[1754631522875,0.04715295,116610.0,116600.0,0.16763032]
[1754631523295,0.04715295,116610.0,116600.0,0.29823032]
[1754631525161,0.04715295,116610.0,116600.0,0.16763032]
[1754631525345,0.04715295,116610.0,116600.0,0.61527563]
[1754631533951,0.04715295,116610.0,116600.0,0.29823032]
[1754631534170,0.04715295,116610.0,116600.0,0.61527563]
[1754631537214,0.04505295,116610.0,116600.0,0.61527563]
[1754631537394,0.01792295,116610.0,116600.0,1.01918305]
[1754631538101,0.04056295,116610.0,116600.0,0.70213774]
[1754631538715,0.04056295,116610.0,116600.0,0.38509243]
[1754631538916,0.04056295,116610.0,116600.0,0.96403774]
[1754631540054,0.01792295,116610.0,116600.0,1.28108305]
[1754631541708,0.01792295,116610.0,116600.0,0.64699243]
[1754631541913,0.01792295,116610.0,116600.0,1.28108305]
[1754631542705,0.01792295,116610.0,116600.0,1.01918305]
[1754631543126,0.01792295,116610.0,116600.0,1.21918305]
[1754631545614,0.01792295,116610.0,116600.0,0.58509243]
[1754631545829,0.01792295,116610.0,116600.0,1.21918305]
[1754631547497,0.04056295,116610.0,116600.0,1.21918305]
[1754631550092,0.01792295,116610.0,116600.0,1.21918305]
[1754631551496,0.00047393,116610.0,116600.0,1.21918305]
[1754631557113,0.00047393,116610.0,116600.0,0.58509243]
[1754631557311,0.00047393,116610.0,116600.0,1.21918305]
[1754631558063,0.00047393,116610.0,116600.0,1.48108305]
[1754631560828,0.02331393,116610.0,116600.0,1.48108305]
[1754631564286,0.02331393,116610.0,116600.0,0.84699243]
[1754631564629,0.02331393,116610.0,116600.0,1.48108305]
[1754631565447,0.02633393,116610.0,116600.0,1.48108305]
[1754631566504,0.04585295,116610.0,116600.0,1.48108305]
[1754631568430,0.04585295,116610.0,116600.0,0.84699243]
[1754631568625,0.04585295,116610.0,116600.0,1.48108305]
[1754631579303,0.04585295,116610.0,116600.0,0.84699243]
[1754631579514,0.04585295,116610.0,116600.0,1.16391774]
[1754631580899,0.04585295,116610.0,116600.0,1.48096305]
[1754631589775,0.04585295,116610.0,116600.0,1.16391774]
[1754631589970,0.04585295,116610.0,116600.0,1.48096305]
[1754631590701,0.04585295,116610.0,116600.0,0.64687243]
[1754631590954,0.21736482,116610.0,116600.0,0.52772069]
[1754631591136,0.53441013,116610.0,116600.0,0.57133858]
[1754631592125,0.53441013,116610.0,116600.0,0.30943858]
[1754631593082,0.21736482,116610.0,116600.0,0.30943858]
[1754631595989,0.04585295,116610.0,116600.0,0.30943858]
[1754631596685,0.21736482,116610.0,116600.0,0.30943858]
[1754631597702,0.04585295,116610.0,116600.0,0.30943858]
[1754631599642,0.04585295,116610.0,116600.0,0.62648389]
[1754631600227,0.04585295,116610.0,116600.0,0.30943858]
[1754631600520,0.04585295,116610.0,116600.0,0.62648389]
[1754631603189,0.04076295,116610.0,116600.0,0.62648389]
[1754631603814,0.04385295,116610.0,116600.0,0.62648389]
[1754631605387,0.04385295,116610.0,116600.0,0.82648389]
[1754631605604,0.04076295,116610.0,116600.0,0.913346]
[1754631607514,0.04076295,116610.0,116600.0,1.23039131]
[1754631607729,0.01792295,116610.0,116600.0,1.23039131]
[1754631609794,0.01792295,116610.0,116600.0,1.49229131]
[1754631611252,0.04066295,116610.0,116600.0,1.49229131]
[1754631611801,0.01792295,116610.0,116600.0,1.49229131]
[1754631613343,0.04066295,116610.0,116600.0,1.49229131]
[1754631620024,0.04368295,116610.0,116600.0,1.49229131]
[1754631620223,0.04368295,116610.0,116600.0,1.175246]
[1754631625287,0.04579295,116610.0,116600.0,1.175246]
[1754631629250,0.04579295,116610.0,116600.0,0.85820069]
[1754631629432,0.04579295,116610.0,116600.0,1.175246]
[1754631632290,0.04579295,116610.0,116600.0,0.85820069]
[1754631632607,0.04579295,116610.0,116600.0,1.175246]
[1754631633031,0.04579295,116610.0,116600.0,0.85820069]
[1754631633179,0.04579295,116610.0,116600.0,1.175246]
[1754631633402,0.04579295,116610.0,116600.0,1.49229131]
[1754631633604,0.04066295,116610.0,116600.0,1.49229131]
[1754631633817,0.04066295,116610.0,116600.0,0.85820069]
[1754631634069,0.04066295,116610.0,116600.0,1.49229131]
[1754631634490,0.01792295,116610.0,116600.0,1.49229131]
[1754631635468,0.04267295,116610.0,116600.0,1.49229131]
[1754631635803,0.00047393,116610.0,116600.0,1.49229131]
[1754631641934,0.00047393,116610.0,116600.0,0.72772069]
[1754631642159,0.02824393,116610.0,116600.0,1.49217131]
[1754631643703,0.03035393,116610.0,116600.0,1.49217131]
[1754631646236,0.03035393,116610.0,116600.0,1.36181131]
[1754631646385,0.03035393,116610.0,116600.0,1.175126]
[1754631646611,0.03035393,116610.0,116600.0,1.49217131]
[1754631647470,0.03035393,116610.0,116600.0,1.175126]
[1754631658852,0.03035393,116610.0,116600.0,1.49217131]
[1754631663442,0.03035393,116610.0,116600.0,1.175126]
[1754631664301,0.03035393,116610.0,116600.0,0.85808069]
[1754631664507,0.03035393,116610.0,116600.0,1.175126]
[1754631668800,0.04780295,116610.0,116600.0,0.65804069]
[1754631669053,0.04780295,116610.0,116600.0,0.975086]
[1754631670547,0.04780295,116610.0,116600.0,0.65804069]
[1754631670751,0.04780295,116610.0,116600.0,0.975086]
[1754631672140,0.04780295,116610.0,116600.0,0.65804069]
[1754631672370,0.04780295,116610.0,116600.0,0.975086]
[1754631673472,0.04780295,116610.0,116600.0,0.975046]
[1754631673889,0.21931482,116610.0,116600.0,0.975046]
[1754631674096,0.04780295,116610.0,116600.0,1.175046]
[1754631675800,0.04780295,116610.0,116600.0,0.85800069]
[1754631675979,0.04780295,116610.0,116600.0,1.175046]
[1754631677103,0.21931482,116610.0,116600.0,1.175046]
[1754631677317,0.21931482,116610.0,116600.0,0.85800069]
[1754631677667,0.21931482,116610.0,116600.0,0.65800069]
[1754631677874,0.04780295,116610.0,116600.0,0.65800069]
[1754631678445,0.21931482,116610.0,116600.0,0.65800069]
[1754631678863,0.04780295,116610.0,116600.0,0.65800069]
[1754631680631,0.04780295,116610.0,116600.0,0.975046]
[1754631681309,0.04780295,116610.0,116600.0,0.65800069]
[1754631683565,0.21931482,116610.0,116600.0,0.65800069]
[1754631683820,0.04780295,116610.0,116600.0,0.65800069]
[1754631685636,0.04780295,116610.0,116600.0,0.85800069]
[1754631688951,0.04780295,116610.0,116600.0,1.175046]
[1754631700261,0.04780295,116610.0,116600.0,0.85800069]
[1754631700471,0.04780295,116610.0,116600.0,1.175046]
[1754631701511,0.04780295,116610.0,116600.0,0.85800069]
[1754631701951,0.04780295,116610.0,116600.0,1.175046]
[1754631711933,0.04267295,116610.0,116600.0,1.175046]
[1754631712814,0.04563295,116610.0,116600.0,1.175046]
[1754631716535,0.04768295,116610.0,116600.0,1.175046]
[1754631719919,0.04768295,116610.0,116600.0,0.85800069]
[1754631720122,0.04768295,116610.0,116600.0,1.175046]
[1754631720352,0.04768295,116610.0,116600.0,0.85800069]
[1754631720551,0.04768295,116610.0,116600.0,1.175046]
[1754631721255,0.04768295,116610.0,116600.0,0.85800069]
[1754631721407,0.04768295,116610.0,116600.0,1.175046]
[1754631724808,0.04563295,116610.0,116600.0,1.175046]
[1754631725174,0.04267295,116610.0,116600.0,1.175046]
[1754631731760,0.04768295,116610.0,116600.0,0.85792069]
[1754631732084,0.04768295,116610.0,116600.0,1.174966]
[1754631732435,0.04768295,116610.0,116600.0,0.85792069]
[1754631732614,0.04768295,116610.0,116600.0,1.174966]
[1754631732810,0.04768295,116610.0,116600.0,1.044766]
[1754631733015,0.04768295,116610.0,116600.0,0.85792069]
[1754631733224,0.04768295,116610.0,116600.0,1.174966]
[1754631736046,0.04768295,116610.0,116600.0,0.85792069]
[1754631736304,0.04768295,116610.0,116600.0,1.174966]
[1754631736757,0.04768295,116610.0,116600.0,0.85792069]
[1754631736966,0.04768295,116610.0,116600.0,1.174966]
[1754631739368,0.04563295,116610.0,116600.0,1.174966]
[1754631739650,0.04563295,116610.0,116600.0,1.044766]
[1754631739956,0.04563295,116610.0,116600.0,1.174966]
[1754631740113,0.04563295,116610.0,116600.0,1.044766]
[1754631740326,0.04563295,116610.0,116600.0,1.174966]
[1754631743962,0.04563295,116610.0,116600.0,1.044766]
[1754631744137,0.04563295,116610.0,116600.0,1.174926]
[1754631748484,0.04563295,116610.0,116600.0,0.85788069]
[1754631748684,0.04762295,116610.0,116600.0,1.174926]
[1754631752432,0.04762295,116610.0,116600.0,1.044766]
[1754631752688,0.04762295,116610.0,116600.0,1.174926]
[1754631753051,0.04762295,116610.0,116600.0,1.044766]
[1754631753255,0.04762295,116610.0,116600.0,1.174926]
[1754631755113,0.04762295,116610.0,116600.0,1.044766]
[1754631755317,0.04762295,116610.0,116600.0,1.174926]
[1754631756717,0.04762295,116610.0,116600.0,1.044766]
[1754631756939,0.04762295,116610.0,116600.0,1.174926]
[1754631758864,0.04762295,116610.0,116600.0,0.85788069]
[1754631759203,0.04762295,116610.0,116600.0,1.174926]
[1754631759659,0.21913482,116610.0,116600.0,1.174926]
[1754631759835,0.21913482,116610.0,116600.0,1.044766]
[1754631760160,0.04762295,116610.0,116600.0,1.044766]
[1754631760334,0.04762295,116610.0,116600.0,1.174926]
[1754631761562,0.21913482,116610.0,116600.0,1.174926]
[1754631762282,0.04762295,116610.0,116600.0,1.174926]
[1754631762658,0.04762295,116610.0,116600.0,0.85788069]
[1754631764859,0.04762295,116610.0,116600.0,1.174926]
[1754631769285,0.21913482,116610.0,116600.0,1.174926]
[1754631771925,0.21913482,116610.0,116600.0,1.044766]
[1754631772220,0.21913482,116610.0,116600.0,1.174886]
[1754631774168,0.04762295,116610.0,116600.0,1.174886]
[1754631774346,0.04563295,116610.0,116600.0,1.174886]
[1754631779931,0.04563295,116610.0,116600.0,1.044766]
[1754631780139,0.04563295,116610.0,116600.0,1.174886]
[1754631785126,0.04563295,116610.0,116600.0,1.044766]
[1754631785351,0.04563295,116610.0,116600.0,1.174886]
[1754631790416,0.21925482,116610.0,116600.0,0.85784069]
[1754631790622,0.04774295,116610.0,116600.0,1.174886]
[1754631791015,0.21925482,116610.0,116600.0,1.044766]
[1754631791222,0.21925482,116610.0,116600.0,1.174846]
[1754631802396,0.21925482,116610.0,116600.0,0.85780069]
[1754631802599,0.21925482,116610.0,116600.0,1.174846]
[1754631802946,0.21925482,116610.0,116600.0,0.72772069]
[1754631803180,0.21925482,116610.0,116600.0,0.85780069]
[1754631813269,0.21925482,116610.0,116600.0,1.174846]
[1754631815100,0.21925482,116610.0,116600.0,0.85780069]
[1754631815306,0.21925482,116610.0,116600.0,1.174846]
[1754631817878,0.21925482,116610.0,116600.0,0.85780069]
[1754631818178,0.21925482,116610.0,116600.0,1.174846]
[1754631823071,0.21925482,116610.0,116600.0,0.85780069]
[1754631823277,0.21925482,116610.0,116600.0,1.174846]
[1754631836137,0.04774295,116610.0,116600.0,1.174846]
[1754631836344,0.21925482,116610.0,116600.0,1.174806]
[1754631839582,0.04774295,116610.0,116600.0,1.174806]
[1754631839818,0.21925482,116610.0,116600.0,1.174806]
[1754631842811,0.21925482,116610.0,116600.0,0.85776069]
[1754631842949,0.21925482,116610.0,116600.0,1.174806]
[1754631844927,0.21925482,116610.0,116600.0,1.172806]
[1754631845703,0.21925482,116610.0,116600.0,1.174806]
[1754631846727,0.04774295,116610.0,116600.0,1.174806]
[1754631847304,0.21925482,116610.0,116600.0,1.174806]
[1754631847872,0.04774295,116610.0,116600.0,1.174806]
[1754631849065,0.36478826,116610.0,116600.0,0.72772069]
[1754631849280,0.21925482,116610.0,116600.0,0.85772069]
[1754631849907,0.53630013,116610.0,116600.0,0.85772069]
[1754631850512,0.29977341,116610.0,116600.0,0.85772069]
[1754631850918,0.53630013,116610.0,116600.0,0.85772069]
[1754631854727,0.21925482,116610.0,116600.0,0.85772069]
[1754631854909,0.53630013,116610.0,116600.0,0.85772069]
[1754631856408,0.21925482,116610.0,116600.0,0.85772069]
[1754631856588,0.53630013,116610.0,116600.0,0.85772069]
[1754631858432,0.21925482,116610.0,116600.0,0.85772069]
[1754631858634,0.53630013,116610.0,116600.0,0.85772069]
[1754631860474,0.53630013,116610.0,116600.0,0.85572069]
[1754631860710,0.53630013,116610.0,116600.0,0.85772069]
[1754631862598,0.21925482,116610.0,116600.0,0.85772069]
[1754631866107,0.29003466,116610.0,116600.0,0.85772069]
[1754631867017,0.21925482,116610.0,116600.0,0.85772069]
[1754631867217,0.53630013,116610.0,116600.0,0.85772069]
[1754631868586,0.21925482,116610.0,116600.0,0.85772069]
[1754631871008,0.53630013,116610.0,116600.0,0.48615411]
[1754631871178,0.53630013,116610.0,116600.0,0.399292]
[1754631871807,0.53630013,116610.0,116600.0,0.57081858]
[1754631874251,0.53630013,116610.0,116600.0,0.44085858]
[1754631874591,0.53630013,116610.0,116600.0,0.57081858]
[1754631876114,0.21925482,116610.0,116600.0,0.30891858]
[1754631877305,0.53630013,116610.0,116600.0,0.30891858]
[1754631878809,0.54906518,116610.0,116600.0,0.30891858]
[1754631880220,0.23201987,116610.0,116600.0,0.30891858]
[1754631880441,0.54906518,116610.0,116600.0,0.30891858]
[1754631882344,0.23201987,116610.0,116600.0,0.30891858]
[1754631882999,0.23201987,116610.0,116600.0,0.17895858]
[1754631883227,0.23201987,116610.0,116600.0,0.30891858]
[1754631884096,0.23201987,116610.0,116600.0,0.17895858]
[1754631884487,0.23201987,116610.0,116600.0,0.30891858]
[1754631884915,0.54906518,116610.0,116600.0,0.17895858]
[1754631887194,0.23201987,116610.0,116600.0,0.17895858]
[1754631887375,0.54906518,116610.0,116600.0,0.17895858]
[1754631889617,0.23201987,116610.0,116600.0,0.17895858]
[1754631889826,0.54906518,116610.0,116600.0,0.17895858]
[1754631897470,0.53630013,116610.0,116600.0,0.30887858]
[1754631897661,0.53630013,116610.0,116600.0,0.137352]
[1754631898076,0.53630013,116610.0,116600.0,0.007432]
[1754631898277,0.53630013,116610.0,116600.0,0.137352]
[1754631898585,0.59641337,116610.0,116600.0,0.137352]
[1754631898820,0.58717121,116610.0,116600.0,0.137352]
[1754631901867,0.71709121,116610.0,116600.0,0.137352]
[1754631904051,0.71709121,116610.0,116600.0,0.007432]
[1754631904564,0.71709121,116610.0,116600.0,0.137352]
[1754631904912,0.71709121,116610.0,116600.0,0.007432]
[1754631905118,0.4000459,116610.0,116600.0,0.137352]
[1754631905321,0.71709121,116610.0,116600.0,0.137352]
[1754631907113,0.66612009,116610.0,116600.0,0.137352]
[1754631907750,0.34907478,116610.0,116600.0,0.137352]
[1754631907957,0.66612009,116610.0,116600.0,0.137352]
[1754631912781,0.34907478,116610.0,116600.0,0.137352]
[1754631912981,0.66612009,116610.0,116600.0,0.137352]
[1754631913390,0.66612009,116610.0,116600.0,0.007432]
[1754631913692,0.66612009,116610.0,116600.0,0.137352]
[1754631915655,0.66612009,116610.0,116600.0,0.137312]
[1754631916289,0.66612009,116610.0,116600.0,0.007432]
[1754631916550,0.66612009,116610.0,116600.0,0.137312]
[1754631916699,0.34907478,116610.0,116600.0,0.137312]
[1754631916886,0.66612009,116610.0,116600.0,0.137312]
[1754631918701,0.75291434,116610.0,116600.0,0.137312]
[1754631920717,0.43586903,116610.0,116600.0,0.137312]
[1754631920918,0.66612009,116610.0,116600.0,0.137312]
[1754631923919,0.34907478,116610.0,116600.0,0.137312]
[1754631924121,0.66612009,116610.0,116600.0,0.137312]
[1754631927730,0.34907478,116610.0,116600.0,0.137312]
[1754631927935,0.66612009,116610.0,116600.0,0.137312]
[1754631928367,0.34907478,116610.0,116600.0,0.137312]
[1754631928519,0.66612009,116610.0,116600.0,0.137312]
[1754631929584,0.67939311,116610.0,116600.0,0.137312]
[1754631930045,0.66612009,116610.0,116600.0,0.137312]
[1754631931522,0.66612009,116610.0,116600.0,0.007432]
[1754631931724,0.66612009,116610.0,116600.0,0.137312]
[1754631932770,0.34907478,116610.0,116600.0,0.137312]
[1754631932972,0.66612009,116610.0,116600.0,0.137312]
[1754631934835,0.34907478,116610.0,116600.0,0.137312]
[1754631934997,0.66612009,116610.0,116600.0,0.137312]
[1754631936659,0.66612009,116610.0,116600.0,0.17895858]
[1754631936860,0.66612009,116610.0,116600.0,0.137272]
[1754631938830,0.34907478,116610.0,116600.0,0.137272]
[1754631939093,0.66612009,116610.0,116600.0,0.137272]
[1754631940997,0.66612009,116610.0,116600.0,0.30879858]
[1754631941205,0.34907478,116610.0,116600.0,0.30879858]
[1754631941352,0.66612009,116610.0,116600.0,0.30879858]
[1754631941591,0.53620009,116610.0,116600.0,0.30879858]
[1754631948863,0.21915478,116610.0,116600.0,0.30879858]
[1754631949047,0.53620009,116610.0,116600.0,0.30879858]
[1754631949856,0.21915478,116610.0,116600.0,0.30879858]
[1754631950062,0.53620009,116610.0,116600.0,0.30879858]
[1754631950402,0.53620009,116610.0,116600.0,0.137272]
[1754631950970,0.74892108,116610.0,116600.0,0.137272]
[1754631954753,0.43187577,116610.0,116600.0,0.137272]
[1754631955106,0.61908108,116610.0,116600.0,0.137272]
[1754631955963,0.21915478,116610.0,116600.0,0.137272]
[1754631956162,0.53620009,116610.0,116600.0,0.137272]
[1754631958966,0.66600009,116610.0,116600.0,0.137272]
[1754631964174,0.66600009,116610.0,116600.0,0.007432]
[1754631964400,0.66600009,116610.0,116600.0,0.137232]
[1754631964600,0.75279434,116610.0,116600.0,0.1338]
[1754631966241,0.66600009,116610.0,116600.0,0.1338]
[1754631966670,0.66600009,116610.0,116600.0,0.004]
[1754631966851,0.66600009,116610.0,116600.0,0.1338]
[1754631967877,0.66600009,116610.0,116600.0,0.004]
[1754631968080,0.66600009,116610.0,116600.0,0.1338]
[1754631972256,0.75279434,116610.0,116600.0,0.1338]
[1754631975344,0.75279434,116610.0,116600.0,0.13376]
[1754631977178,0.75279434,116610.0,116600.0,0.004]
[1754631977899,0.75279434,116610.0,116600.0,0.002]
[1754631978557,0.75279434,116610.0,116600.0,0.005]
[1754631978762,0.75279434,116610.0,116600.0,0.003]
[1754631979108,0.75279434,116610.0,116600.0,0.006]
[1754631980645,0.43574903,116610.0,116600.0,0.006]
[1754631980847,0.75279434,116610.0,116600.0,0.006]
[1754631981660,0.43574903,116610.0,116600.0,0.006]
[1754631981874,0.75279434,116610.0,116600.0,0.006]
[1754631997191,0.43574903,116610.0,116600.0,0.006]
[1754631997406,0.75279434,116610.0,116600.0,0.006]
[1754631997654,1.13931727,116610.0,116600.0,0.006]
[1754632009933,1.14809527,116610.0,116600.0,0.006]
[1754632011950,1.01829527,116610.0,116600.0,0.006]
[1754632012362,1.14801527,116610.0,116600.0,0.006]
[1754632014569,1.40975965,116610.0,116600.0,0.006]
[1754632037312,0.77566903,116610.0,116600.0,0.006]
[1754632037485,1.40975965,116610.0,116600.0,0.006]
[1754632039092,1.40975965,116610.0,116600.0,0.003]
[1754632039300,1.09271434,116610.0,116600.0,0.003]
[1754632039421,1.09271434,116610.0,116600.0,0.005]
[1754632039870,1.09271434,116610.0,116600.0,0.002]
[1754632040230,1.09271434,116610.0,116600.0,0.004]
[1754632044176,1.40975965,116610.0,116600.0,0.004]
[1754632045174,1.09271434,116610.0,116600.0,0.004]
[1754632045562,1.11846334,116610.0,116600.0,0.004]
[1754632051715,1.43550865,116610.0,116600.0,0.004]
[1754632051919,1.11846334,116610.0,116600.0,0.004]
[1754632052990,1.20532545,116610.0,116600.0,0.004]
[1754632053543,1.52237076,116610.0,116600.0,0.004]
[1754632059605,1.07560545,116610.0,116600.0,0.004]
[1754632059807,1.20524545,116610.0,116600.0,0.004]
[1754632067798,1.52229076,116610.0,116600.0,0.004]
[1754632072978,0.88820014,116610.0,116600.0,0.004]
[1754632073148,1.52229076,116610.0,116600.0,0.004]
[1754632093695,0.88820014,116610.0,116600.0,0.004]
[1754632093909,1.52229076,116610.0,116600.0,0.004]
[1754632094118,0.88816014,116610.0,116600.0,0.004]
[1754632094309,1.20520545,116610.0,116600.0,0.004]
[1754632094848,0.88816014,116610.0,116600.0,0.004]
[1754632095078,1.20520545,116610.0,116600.0,0.004]
[1754632097466,0.88816014,116610.0,116600.0,0.004]
[1754632097676,1.20520545,116610.0,116600.0,0.004]
[1754632099623,0.88816014,116610.0,116600.0,0.004]
[1754632099850,1.20520545,116610.0,116600.0,0.004]
[1754632102450,1.52225076,116610.0,116600.0,0.004]
[1754632102875,1.20520545,116610.0,116600.0,0.004]
[1754632108043,0.88816014,116610.0,116600.0,0.004]
[1754632108241,1.20520545,116610.0,116600.0,0.004]
[1754632108636,0.88816014,116610.0,116600.0,0.004]
[1754632108985,1.20520545,116610.0,116600.0,0.004]
[1754632119250,1.52225076,116610.0,116600.0,0.004]
[1754632142981,1.20520545,116610.0,116600.0,0.004]
[1754632143368,1.52225076,116610.0,116600.0,0.004]
[1754632143912,1.20520545,116610.0,116600.0,0.004]
[1754632144853,0.88816014,116610.0,116600.0,0.004]
[1754632145053,1.52225076,116610.0,116600.0,0.004]
[1754632152569,1.20520545,116610.0,116600.0,0.004]
[1754632156674,1.52225076,116610.0,116600.0,0.004]
[1754632156880,0.88816014,116610.0,116600.0,0.004]
[1754632157085,1.20520545,116610.0,116600.0,0.004]
[1754632160051,1.52225076,116610.0,116600.0,0.004]
[1754632168019,0.88816014,116610.0,116600.0,0.004]